Workbook

Sheet Produktionsanlæg
A1: Produktionsanlæg | B1: Enhed | C1: Standard-levetid | D1: Samlet mængde per 31/12-2022 | E1: Samlet mængde per 31/12-2023 | F1: Samlet mængde per 31/12-2024 | G1: Afvigelse 2022-2023 | H1: Afvigelse 2023-2024 | I1: Bemærkninger
A3: Renseanlæg 1 | G3: =IF(D3="",IF(E3>0,"Ny data",IF(E3="","",0)),IF(D3=0,IF(E3=0,0,"Ny data"),(E3-D3)/D3)) ->  | H3: =IF(E3="",IF(F3>0,"Ny data",IF(F3="","",0)),IF(E3=0,IF(F3=0,0,"Ny data"),(F3-E3)/E3)) -> 
A4: Mindre renseanlæg
A5: Mindre renseanlæg < 5.000 PE | B5: PE | C5: 40 | D5: 450 | E5: 450 | F5: 0 | G5: 0 | H5: -1 | I5: Renseanlæg er nedlagt og der er opført en pumpestation.
A6: Mindre renseanlæg < 5.000 PE | B6: PE | C6: 40 | D6: 10 | E6: 10 | F6: 10 | G6: 0 | H6: 0
A7: Mindre renseanlæg < 5.000 PE | B7: PE | C7: 40 | D7: 5 | E7: 5 | F7: 5 | G7: 0 | H7: 0
A8: Mindre renseanlæg < 5.000 PE | B8: PE | C8: 40 | D8: 5 | E8: 5 | F8: 5 | G8: 0 | H8: 0
A9: Mindre renseanlæg < 5.000 PE | B9: PE | C9: 40 | D9: 5 | E9: 5 | F9: 5 | G9: 0 | H9: 0
A10: Mindre renseanlæg < 5.000 PE | B10: PE | C10: 40 | D10: 5 | E10: 5 | F10: 5 | G10: 0 | H10: 0
A11: Mindre renseanlæg < 5.000 PE | B11: PE | C11: 40 | D11: 5 | E11: 5 | F11: 5 | G11: 0 | H11: 0
A12: Mindre renseanlæg < 5.000 PE | B12: PE | C12: 40 | D12: 5 | E12: 5 | F12: 5 | G12: 0 | H12: 0
A13: Mindre renseanlæg < 5.000 PE | B13: PE | C13: 40 | D13: 5 | E13: 5 | F13: 5 | G13: 0 | H13: 0
A14: Mindre renseanlæg < 5.000 PE | B14: PE | C14: 40 | D14: 5 | E14: 5 | F14: 5 | G14: 0 | H14: 0
A15: Mindre renseanlæg < 5.000 PE | B15: PE | C15: 40 | D15: 5 | E15: 5 | F15: 5 | G15: 0 | H15: 0
A16: Mindre renseanlæg < 5.000 PE | B16: PE | C16: 40 | D16: 5 | E16: 5 | F16: 5 | G16: 0 | H16: 0
A17: Mindre renseanlæg < 5.000 PE | B17: PE | C17: 40 | D17: 5 | E17: 5 | F17: 5 | G17: 0 | H17: 0
A18: Mindre renseanlæg < 5.000 PE | B18: PE | C18: 40 | D18: 5 | E18: 5 | F18: 5 | G18: 0 | H18: 0
A19: Mindre renseanlæg < 5.000 PE | B19: PE | C19: 40 | D19: 5 | E19: 5 | F19: 5 | G19: 0 | H19: 0
A20: Mindre renseanlæg < 5.000 PE | B20: PE | C20: 40 | D20: 5 | E20: 5 | F20: 5 | G20: 0 | H20: 0
A21: Mindre renseanlæg < 5.000 PE | B21: PE | C21: 40 | D21: 5 | E21: 5 | F21: 5 | G21: 0 | H21: 0
A22: Mindre renseanlæg < 5.000 PE | B22: PE | C22: 40 | D22: 5 | E22: 5 | F22: 5 | G22: 0 | H22: 0
A23: Mindre renseanlæg < 5.000 PE | B23: PE | C23: 40 | D23: 5 | E23: 5 | F23: 5 | G23: 0 | H23: 0
A24: Mindre renseanlæg < 5.000 PE | B24: PE | C24: 40 | D24: 5 | E24: 5 | F24: 5 | G24: 0 | H24: 0
A25: Mindre renseanlæg < 5.000 PE | B25: PE | C25: 40 | D25: 5 | E25: 5 | F25: 5 | G25: 0 | H25: 0
A26: Mindre renseanlæg < 5.000 PE | B26: PE | C26: 40 | D26: 5 | E26: 5 | F26: 5 | G26: 0 | H26: 0
A27: Mindre renseanlæg < 5.000 PE | B27: PE | C27: 40 | D27: 5 | E27: 5 | F27: 5 | G27: 0 | H27: 0
A28: Mindre renseanlæg < 5.000 PE | B28: PE | C28: 40 | D28: 5 | E28: 5 | F28: 5 | G28: 0 | H28: 0
A29: Mindre renseanlæg < 5.000 PE | B29: PE | C29: 40 | D29: 5 | E29: 5 | F29: 5 | G29: 0 | H29: 0
A30: Mindre renseanlæg < 5.000 PE | B30: PE | C30: 40 | D30: 5 | E30: 5 | F30: 5 | G30: 0 | H30: 0
A31: Mindre renseanlæg < 5.000 PE | B31: PE | C31: 40 | D31: 5 | E31: 5 | F31: 5 | G31: 0 | H31: 0
A32: Mindre renseanlæg < 5.000 PE | B32: PE | C32: 40 | D32: 5 | E32: 5 | F32: 5 | G32: 0 | H32: 0
A33: Mindre renseanlæg < 5.000 PE | B33: PE | C33: 40 | D33: 5 | E33: 5 | F33: 5 | G33: 0 | H33: 0
A34: Mindre renseanlæg < 5.000 PE | B34: PE | C34: 40 | D34: 5 | E34: 5 | F34: 5 | G34: 0 | H34: 0
A35: Mindre renseanlæg < 5.000 PE | B35: PE | C35: 40 | D35: 5 | E35: 5 | F35: 5 | G35: 0 | H35: 0
A36: Mindre renseanlæg < 5.000 PE | B36: PE | C36: 40 | D36: 5 | E36: 5 | F36: 5 | G36: 0 | H36: 0
A37: Mindre renseanlæg < 5.000 PE | B37: PE | C37: 40 | D37: 5 | E37: 5 | F37: 5 | G37: 0 | H37: 0
A38: Mindre renseanlæg < 5.000 PE | B38: PE | C38: 40 | D38: 5 | E38: 5 | F38: 5 | G38: 0 | H38: 0
A39: Mindre renseanlæg < 5.000 PE | B39: PE | C39: 40 | D39: 5 | E39: 5 | F39: 5 | G39: 0 | H39: 0
A40: Mindre renseanlæg < 5.000 PE | B40: PE | C40: 40 | D40: 5 | E40: 5 | F40: 5 | G40: 0 | H40: 0
A41: Mindre renseanlæg < 5.000 PE | B41: PE | C41: 40 | D41: 5 | E41: 5 | F41: 5 | G41: 0 | H41: 0
A42: Mindre renseanlæg < 5.000 PE | B42: PE | C42: 40 | D42: 5 | E42: 5 | F42: 5 | G42: 0 | H42: 0
A43: Mindre renseanlæg < 5.000 PE | B43: PE | C43: 40 | D43: 5 | E43: 5 | F43: 5 | G43: 0 | H43: 0
A44: Mindre renseanlæg < 5.000 PE | B44: PE | C44: 40 | D44: 5 | E44: 5 | F44: 5 | G44: 0 | H44: 0
A45: Mindre renseanlæg < 5.000 PE | B45: PE | C45: 40 | D45: 5 | E45: 5 | F45: 5 | G45: 0 | H45: 0
A46: Mindre renseanlæg < 5.000 PE | B46: PE | C46: 40 | D46: 5 | E46: 5 | F46: 5 | G46: 0 | H46: 0
A47: Mindre renseanlæg < 5.000 PE | B47: PE | C47: 40 | D47: 5 | E47: 5 | F47: 5 | G47: 0 | H47: 0
A48: Mindre renseanlæg < 5.000 PE | B48: PE | C48: 40 | D48: 5 | E48: 5 | F48: 5 | G48: 0 | H48: 0
A49: Mindre renseanlæg < 5.000 PE | B49: PE | C49: 40 | D49: 5 | E49: 5 | F49: 5 | G49: 0 | H49: 0
A50: Mindre renseanlæg < 5.000 PE | B50: PE | C50: 40 | D50: 5 | E50: 5 | F50: 5 | G50: 0 | H50: 0
A51: Mindre renseanlæg < 5.000 PE | B51: PE | C51: 40 | D51: 5 | E51: 5 | F51: 5 | G51: 0 | H51: 0
A52: Mindre renseanlæg < 5.000 PE | B52: PE | C52: 40 | D52: 5 | E52: 5 | F52: 5 | G52: 0 | H52: 0
A53: Mindre renseanlæg < 5.000 PE | B53: PE | C53: 40 | D53: 5 | E53: 5 | F53: 5 | G53: 0 | H53: 0
A54: Mindre renseanlæg < 5.000 PE | B54: PE | C54: 40 | D54: 5 | E54: 5 | F54: 5 | G54: 0 | H54: 0
A55: Mindre renseanlæg < 5.000 PE | B55: PE | C55: 40 | D55: 5 | E55: 5 | F55: 5 | G55: 0 | H55: 0
A56: Mindre renseanlæg < 5.000 PE | B56: PE | C56: 40 | D56: 5 | E56: 5 | F56: 5 | G56: 0 | H56: 0
A57: Mindre renseanlæg < 5.000 PE | B57: PE | C57: 40 | D57: 5 | E57: 5 | F57: 5 | G57: 0 | H57: 0
A58: Mindre renseanlæg < 5.000 PE | B58: PE | C58: 40 | D58: 5 | E58: 5 | F58: 5 | G58: 0 | H58: 0
A59: Mindre renseanlæg < 5.000 PE | B59: PE | C59: 40 | D59: 5 | E59: 5 | F59: 5 | G59: 0 | H59: 0
A60: Mindre renseanlæg < 5.000 PE | B60: PE | C60: 40 | D60: 5 | E60: 5 | F60: 5 | G60: 0 | H60: 0
A61: Mindre renseanlæg < 5.000 PE | B61: PE | C61: 40 | D61: 5 | E61: 5 | F61: 5 | G61: 0 | H61: 0
A62: Mindre renseanlæg < 5.000 PE | B62: PE | C62: 40 | D62: 5 | E62: 5 | F62: 5 | G62: 0 | H62: 0
A63: Mindre renseanlæg < 5.000 PE | B63: PE | C63: 40 | D63: 5 | E63: 5 | F63: 5 | G63: 0 | H63: 0
A64: Mindre renseanlæg < 5.000 PE | B64: PE | C64: 40 | D64: 5 | E64: 5 | F64: 5 | G64: 0 | H64: 0
A65: Mindre renseanlæg < 5.000 PE | B65: PE | C65: 40 | D65: 5 | E65: 5 | F65: 5 | G65: 0 | H65: 0
A66: Mindre renseanlæg < 5.000 PE | B66: PE | C66: 40 | D66: 5 | E66: 5 | F66: 5 | G66: 0 | H66: 0
A67: Mindre renseanlæg < 5.000 PE | B67: PE | C67: 40 | D67: 5 | E67: 5 | F67: 5 | G67: =IF(D67="",IF(E67>0,"Ny data",IF(E67="","",0)),IF(D67=0,IF(E67=0,0,"Ny data"),(E67-D67)/D67)) -> 0 | H67: =IF(E67="",IF(F67>0,"Ny data",IF(F67="","",0)),IF(E67=0,IF(F67=0,0,"Ny data"),(F67-E67)/E67)) -> 0
A68: Mindre renseanlæg < 5.000 PE | B68: PE | C68: 40 | D68: 5 | E68: 5 | F68: 5 | G68: 0 | H68: 0
A69: Mindre renseanlæg < 5.000 PE | B69: PE | C69: 40 | D69: 5 | E69: 5 | F69: 5 | G69: 0 | H69: 0
A70: Mindre renseanlæg < 5.000 PE | B70: PE | C70: 40 | D70: 5 | E70: 5 | F70: 5 | G70: 0 | H70: 0
A71: Renseanlæg >= 5.000 PE, Vandbehandling
A72: Indløb med riste, Konstruktioner | B72: PE | C72: 60 | D72: 0 | G72: 0 | I72: Renseanlæg 1
A73: Indløb med riste, Mek/EL | B73: PE | C73: 20 | D73: 0 | G73: 0
A74: Indløb med riste, SRO | B74: PE | C74: 10 | D74: 0 | G74: 0
A75: Sand- og fedtfang, Kontruktioner | B75: PE | C75: 60 | D75: 0 | G75: 0
A76: Sand- og fedtfang, Mek/EL | B76: PE | C76: 20 | D76: 0 | G76: 0
A77: Sand- og fedtfang, SRO | B77: PE | C77: 10 | D77: 0 | G77: 0
A78: Forklaring, Konstruktioner | B78: PE | C78: 60 | D78: 0 | G78: 0
A79: Forklaring, Mek/EL | B79: PE | C79: 20 | D79: 0 | G79: 0
A80: Forklaring, SRO | B80: PE | C80: 10 | D80: 0 | G80: 0
A81: Beluftningstanke, Konstruktioner | B81: PE | C81: 60 | D81: 0 | G81: 0
A82: Beluftningstanke, Mek/EL | B82: PE | C82: 20 | D82: 0 | G82: 0
A83: Beluftningstanke, SRO | B83: PE | C83: 10 | D83: 0 | G83: 0
A84: Efterklaringstanke, Konstruktioner | B84: PE | C84: 60 | D84: 0 | G84: 0
A85: Efterklaringstanke, Mek/El | B85: PE | C85: 20 | D85: 0 | G85: 0
A86: Efterklaringstanke, SRO | B86: PE | C86: 10 | D86: 0 | G86: 0
A87: Efterbehandlingsanlæg (sandfilter), Konstruktioner | B87: PE | C87: 60 | D87: 0 | G87: 0
A88: Efterbehandlingsanlæg (sandfilter), Mek/EL | B88: PE | C88: 20 | D88: 0 | G88: 0
A89: Efterbehandlingsanlæg (sandfilter), SRO | B89: PE | C89: 10 | D89: 0 | G89: 0
A90: Renseanlæg >= 5.000 PE, Slambehandling
A91: Forafvanding, slam, Konstruktion | B91: PE | C91: 60 | D91: 0 | G91: 0
A92: Forafvanding, slam, Mek/EL | B92: PE | C92: 20 | D92: 0 | G92: 0
A93: Forafvanding, slam, SRO | B93: PE | C93: 10 | D93: 0 | G93: 0
A94: Rådnetanke, slam, Konstruktioner | B94: PE | C94: 60 | D94: 0 | G94: 0
A95: Rådnetanke, slam, Mek/EL | B95: PE | C95: 20 | D95: 0 | G95: 0
A96: Rådnetanke, slam, SRO | B96: PE | C96: 10 | D96: 0 | G96: 0
A97: Gasdisponering, Konstruktioner | B97: PE | C97: 60 | D97: 0 | G97: 0
A98: Gasdisponering, Mek/EL | B98: PE | C98: 20 | D98: 0 | G98: 0
A99: Gasdisponering, SRO | B99: PE | C99: 10 | D99: 0 | G99: 0
A100: Gasdisponering - elproduktionsanlæg, Konstruktioner | B100: PE | C100: 60 | D100: 0 | G100: 0
A101: Gasdisponering - elproduktionsanlæg, Mek/EL | B101: PE | C101: 20 | D101: 0 | G101: 0
A102: Gasdisponering - elproduktionsanlæg, SRO | B102: PE | C102: 10 | D102: 0 | G102: 0
A103: Gasrensning - Aktivt kulfilter | B103: m3/t | C103: 15 | D103: 0 | G103: 0
A104: Gasrensning - Biologisk skrubber | B104: m3/t | C104: 15 | D104: 0 | G104: 0
A105: Opgraderingsanlæg - Membran | B105: m3/t | C105: 15 | D105: 0 | G105: 0
A106: Varmeproduktionsanlæg | B106: m3/t | C106: 15 | D106: 0 | G106: 0
A107: Slutafvanding, slam - lavteknologisk (slambede), Konstruktioner | B107: PE | C107: 60 | D107: 0 | G107: 0
A108: Slutafvanding, slam - lavteknologisk (slambede), Mek/EL | B108: PE | C108: 20 | D108: 0 | G108: 0
A109: Slutafvanding, slam - lavteknologisk (slambede), SRO | B109: PE | C109: 10 | D109: 0 | G109: 0
A110: Slutafvanding, slam - højteknologisk (centrifuger), Konstruktioner | B110: PE | C110: 60 | D110: 0 | G110: 0
A111: Slutafvanding, slam - højteknologisk (centrifuger), Mek/El | B111: PE | C111: 20 | D111: 0 | G111: 0
A112: Slutafvanding, slam - højteknologisk (centrifuger), SRO | B112: PE | C112: 10 | D112: 0 | G112: 0
A113: Renseanlæg >= 5.000 PE, Slamdisponering
A114: Slutdisponering, slam - lavteknologisk (slammineralisering), Konstruktioner | B114: PE | C114: 60 | D114: 0 | G114: 0
A115: Slutdisponering, slam - lavteknologisk (slammineralisering), Mek/EL | B115: PE | C115: 20 | D115: 0 | G115: 0
A116: Slutdisponering, slam - lavteknologisk (slammineralisering), SRO | B116: PE | C116: 10 | D116: 0 | G116: 0
A117: Slutdisponering, slam - højteknologisk (slamtørring), Konstruktioner | B117: PE | C117: 60 | D117: 0 | G117: 0
A118: Slutdisponering, slam - højteknologisk (slamtørring), Mek/EL | B118: PE | C118: 20 | D118: 0 | G118: 0
A119: Slutdisponering, slam - højteknologisk (slamtørring), SRO | B119: PE | C119: 10 | D119: 0 | G119: 0
A120: Slutdisponering, slam - højteknologisk (slamtørring og -forbrænding), Konstruktioner | B120: PE | C120: 60 | D120: 0 | G120: 0
A121: Slutdisponering, slam - højteknologisk (slamtørring og -forbrænding), Mek/EL | B121: PE | C121: 20 | D121: 0 | G121: 0
A122: Slutdisponering, slam - højteknologisk (slamtørring og -forbrænding), SRO | B122: PE | C122: 10 | D122: 0 | G122: 0
A123: Renseanlæg 2
A124: Mindre renseanlæg
A125: Mindre renseanlæg < 5.000 PE | B125: PE | C125: 40 | D125: 0 | G125: 0 | I125: Gislev
A126: Renseanlæg >= 5.000 PE, Vandbehandling
A127: Indløb med riste, Konstruktioner | B127: PE | C127: 60 | D127: 3500 | E127: 3500 | F127: 3500 | G127: 0 | H127: 0
A128: Indløb med riste, Mek/EL | B128: PE | C128: 20 | D128: 3500 | E128: 3500 | F128: 3500 | G128: 0 | H128: 0
A129: Indløb med riste, SRO | B129: PE | C129: 10 | D129: 3500 | E129: 3500 | F129: 3500 | G129: 0 | H129: 0
A130: Sand- og fedtfang, Kontruktioner | B130: PE | C130: 60 | D130: 3500 | E130: 3500 | F130: 3500 | G130: 0 | H130: 0
A131: Sand- og fedtfang, Mek/EL | B131: PE | C131: 20 | D131: 3500 | E131: 3500 | F131: 3500 | G131: =IF(D131="",IF(E131>0,"Ny data",IF(E131="","",0)),IF(D131=0,IF(E131=0,0,"Ny data"),(E131-D131)/D131)) -> 0 | H131: =IF(E131="",IF(F131>0,"Ny data",IF(F131="","",0)),IF(E131=0,IF(F131=0,0,"Ny data"),(F131-E131)/E131)) -> 0
A132: Sand- og fedtfang, SRO | B132: PE | C132: 10 | D132: 3500 | E132: 3500 | F132: 3500 | G132: 0 | H132: 0
A133: Forklaring, Konstruktioner | B133: PE | C133: 60 | D133: 3500 | E133: 3500 | F133: 3500 | G133: 0 | H133: 0
A134: Forklaring, Mek/EL | B134: PE | C134: 20 | D134: 3500 | E134: 3500 | F134: 3500 | G134: 0 | H134: 0
A135: Forklaring, SRO | B135: PE | C135: 10 | D135: 3500 | E135: 3500 | F135: 3500 | G135: 0 | H135: 0
A136: Beluftningstanke, Konstruktioner | B136: PE | C136: 60 | D136: 3500 | E136: 3500 | F136: 3500 | G136: 0 | H136: 0
A137: Beluftningstanke, Mek/EL | B137: PE | C137: 20 | D137: 3500 | E137: 3500 | F137: 3500 | G137: 0 | H137: 0
A138: Beluftningstanke, SRO | B138: PE | C138: 10 | D138: 3500 | E138: 3500 | F138: 3500 | G138: 0 | H138: 0
A139: Efterklaringstanke, Konstruktioner | B139: PE | C139: 60 | D139: 3500 | E139: 3500 | F139: 3500 | G139: 0 | H139: 0
A140: Efterklaringstanke, Mek/El | B140: PE | C140: 20 | D140: 3500 | E140: 3500 | F140: 3500 | G140: 0 | H140: 0
A141: Efterklaringstanke, SRO | B141: PE | C141: 10 | D141: 3500 | E141: 3500 | F141: 3500 | G141: 0 | H141: 0
A142: Efterbehandlingsanlæg (sandfilter), Konstruktioner | B142: PE | C142: 60 | D142: 0 | G142: 0
A143: Efterbehandlingsanlæg (sandfilter), Mek/EL | B143: PE | C143: 20 | D143: 0 | G143: 0
A144: Efterbehandlingsanlæg (sandfilter), SRO | B144: PE | C144: 10 | D144: 0 | G144: 0
A145: Renseanlæg >= 5.000 PE, Slambehandling
A146: Forafvanding, slam, Konstruktion | B146: PE | C146: 60 | D146: 0 | G146: 0
A147: Forafvanding, slam, Mek/EL | B147: PE | C147: 20 | D147: 0 | G147: 0
A148: Forafvanding, slam, SRO | B148: PE | C148: 10 | D148: 0 | G148: 0
A149: Rådnetanke, slam, Konstruktioner | B149: PE | C149: 60 | D149: 0 | G149: 0
A150: Rådnetanke, slam, Mek/EL | B150: PE | C150: 20 | D150: 0 | G150: 0
A151: Rådnetanke, slam, SRO | B151: PE | C151: 10 | D151: 0 | G151: 0
A152: Gasdisponering, Konstruktioner | B152: PE | C152: 60 | D152: 0 | G152: 0
A153: Gasdisponering, Mek/EL | B153: PE | C153: 20 | D153: 0 | G153: 0
A154: Gasdisponering, SRO | B154: PE | C154: 10 | D154: 0 | G154: 0
A155: Gasdisponering - elproduktionsanlæg, Konstruktioner | B155: PE | C155: 60 | D155: 0 | G155: 0
A156: Gasdisponering - elproduktionsanlæg, Mek/EL | B156: PE | C156: 20 | D156: 0 | G156: 0
A157: Gasdisponering - elproduktionsanlæg, SRO | B157: PE | C157: 10 | D157: 0 | G157: 0
A158: Gasrensning - Aktivt kulfilter | B158: m3/t | C158: 15 | D158: 0 | G158: 0
A159: Gasrensning - Biologisk skrubber | B159: m3/t | C159: 15 | D159: 0 | G159: 0
A160: Opgraderingsanlæg - Membran | B160: m3/t | C160: 15 | D160: 0 | G160: 0
A161: Varmeproduktionsanlæg | B161: m3/t | C161: 15 | D161: 0 | G161: 0
A162: Slutafvanding, slam - lavteknologisk (slambede), Konstruktioner | B162: PE | C162: 60 | D162: 0 | G162: 0
A163: Slutafvanding, slam - lavteknologisk (slambede), Mek/EL | B163: PE | C163: 20 | D163: 0 | G163: 0
A164: Slutafvanding, slam - lavteknologisk (slambede), SRO | B164: PE | C164: 10 | D164: 0 | G164: 0
A165: Slutafvanding, slam - højteknologisk (centrifuger), Konstruktioner | B165: PE | C165: 60 | D165: 0 | G165: 0
A166: Slutafvanding, slam - højteknologisk (centrifuger), Mek/El | B166: PE | C166: 20 | D166: 0 | G166: 0
A167: Slutafvanding, slam - højteknologisk (centrifuger), SRO | B167: PE | C167: 10 | D167: 0 | G167: 0
A168: Renseanlæg >= 5.000 PE, Slamdisponering
A169: Slutdisponering, slam - lavteknologisk (slammineralisering), Konstruktioner | B169: PE | C169: 60 | D169: 0 | G169: 0
A170: Slutdisponering, slam - lavteknologisk (slammineralisering), Mek/EL | B170: PE | C170: 20 | D170: 0 | G170: 0
A171: Slutdisponering, slam - lavteknologisk (slammineralisering), SRO | B171: PE | C171: 10 | D171: 0 | G171: 0
A172: Slutdisponering, slam - højteknologisk (slamtørring), Konstruktioner | B172: PE | C172: 60 | D172: 0 | G172: 0
A173: Slutdisponering, slam - højteknologisk (slamtørring), Mek/EL | B173: PE | C173: 20 | D173: 0 | G173: 0
A174: Slutdisponering, slam - højteknologisk (slamtørring), SRO | B174: PE | C174: 10 | D174: 0 | G174: 0
A175: Slutdisponering, slam - højteknologisk (slamtørring og -forbrænding), Konstruktioner | B175: PE | C175: 60 | D175: 0 | G175: 0
A176: Slutdisponering, slam - højteknologisk (slamtørring og -forbrænding), Mek/EL | B176: PE | C176: 20 | D176: 0 | G176: 0
A177: Slutdisponering, slam - højteknologisk (slamtørring og -forbrænding), SRO | B177: PE | C177: 10 | D177: 0 | G177: 0
A178: Renseanlæg 3
A179: Mindre renseanlæg
A180: Mindre renseanlæg < 5.000 PE | B180: PE | C180: 40 | D180: 0 | G180: 0 | I180: Ryslinge
A181: Renseanlæg >= 5.000 PE, Vandbehandling
A182: Indløb med riste, Konstruktioner | B182: PE | C182: 60 | D182: 3500 | E182: 3500 | F182: 3500 | G182: 0 | H182: 0
A183: Indløb med riste, Mek/EL | B183: PE | C183: 20 | D183: 3500 | E183: 3500 | F183: 3500 | G183: 0 | H183: 0
A184: Indløb med riste, SRO | B184: PE | C184: 10 | D184: 3500 | E184: 3500 | F184: 3500 | G184: 0 | H184: 0
A185: Sand- og fedtfang, Kontruktioner | B185: PE | C185: 60 | D185: 3500 | E185: 3500 | F185: 3500 | G185: 0 | H185: 0
A186: Sand- og fedtfang, Mek/EL | B186: PE | C186: 20 | D186: 3500 | E186: 3500 | F186: 3500 | G186: 0 | H186: 0
A187: Sand- og fedtfang, SRO | B187: PE | C187: 10 | D187: 3500 | E187: 3500 | F187: 3500 | G187: 0 | H187: 0
A188: Forklaring, Konstruktioner | B188: PE | C188: 60 | D188: 3500 | E188: 3500 | F188: 3500 | G188: 0 | H188: 0
A189: Forklaring, Mek/EL | B189: PE | C189: 20 | D189: 3500 | E189: 3500 | F189: 3500 | G189: 0 | H189: 0
A190: Forklaring, SRO | B190: PE | C190: 10 | D190: 3500 | E190: 3500 | F190: 3500 | G190: 0 | H190: 0
A191: Beluftningstanke, Konstruktioner | B191: PE | C191: 60 | D191: 3500 | E191: 3500 | F191: 3500 | G191: 0 | H191: 0
A192: Beluftningstanke, Mek/EL | B192: PE | C192: 20 | D192: 3500 | E192: 3500 | F192: 3500 | G192: 0 | H192: 0
A193: Beluftningstanke, SRO | B193: PE | C193: 10 | D193: 3500 | E193: 3500 | F193: 3500 | G193: 0 | H193: 0
A194: Efterklaringstanke, Konstruktioner | B194: PE | C194: 60 | D194: 3500 | E194: 3500 | F194: 3500 | G194: 0 | H194: 0
A195: Efterklaringstanke, Mek/El | B195: PE | C195: 20 | D195: 3500 | E195: 3500 | F195: 3500 | G195: =IF(D195="",IF(E195>0,"Ny data",IF(E195="","",0)),IF(D195=0,IF(E195=0,0,"Ny data"),(E195-D195)/D195)) -> 0 | H195: =IF(E195="",IF(F195>0,"Ny data",IF(F195="","",0)),IF(E195=0,IF(F195=0,0,"Ny data"),(F195-E195)/E195)) -> 0
A196: Efterklaringstanke, SRO | B196: PE | C196: 10 | D196: 3500 | E196: 3500 | F196: 3500 | G196: 0 | H196: 0
A197: Efterbehandlingsanlæg (sandfilter), Konstruktioner | B197: PE | C197: 60 | D197: 0 | G197: 0
A198: Efterbehandlingsanlæg (sandfilter), Mek/EL | B198: PE | C198: 20 | D198: 0 | G198: 0
A199: Efterbehandlingsanlæg (sandfilter), SRO | B199: PE | C199: 10 | D199: 0 | G199: 0
A200: Renseanlæg >= 5.000 PE, Slambehandling
A201: Forafvanding, slam, Konstruktion | B201: PE | C201: 60 | D201: 0 | G201: 0
... 361 more rows

Sheet Distributionsanlæg
A1: Distributionsanlæg | B1: Enhed | C1: Standard-levetid | D1: Samlet mængde per 31/12-2022 | E1: Samlet mængde per 31/12-2023 | F1: Samlet mængde per 31/12-2024 | G1: Afvigelse 2022-2023 | H1: Afvigelse 2023-2024 | I1: Bemærkninger
A3: Ledningsnet - Land | G3: =IF(D3="",IF(E3>0,"Ny data",IF(E3="","",0)),IF(D3=0,IF(E3=0,0,"Ny data"),(E3-D3)/D3)) ->  | H3: =IF(E3="",IF(F3>0,"Ny data",IF(F3="","",0)),IF(E3=0,IF(F3=0,0,"Ny data"),(F3-E3)/E3)) -> 
A4: Ledningsnet ≤ Ø 200 mm | B4: meter | C4: 75 | D4: =496065+20913 -> 516978 | E4: 523709 | F4: 523379 | G4: 0.0130198964 | H4: -0.0006301209259
A5: Ø 200 mm < Ledningsnet ≤ Ø 500 mm | B5: meter | C5: 75 | D5: =178842+1552 -> 180394 | E5: 179900 | F5: 180154 | G5: -0.002738450281 | H5: 0.001411895497
A6: Ø 500 mm < Ledningsnet ≤ Ø 800 mm | B6: meter | C6: 75 | D6: =27967+427 -> 28394 | E6: 27936 | F6: 28441 | G6: -0.01613016835 | H6: 0.01807703322
A7: Ø 800 mm < Ledningsnet ≤ Ø 1000 mm | B7: meter | C7: 75 | D7: 3852 | E7: 3969 | F7: 3969 | G7: 0.03037383178 | H7: 0
A8: Ø 1000 mm < Ledningsnet ≤ Ø 1200 mm | B8: meter | C8: 75 | D8: 403 | E8: 403 | F8: 403 | G8: 0 | H8: 0
A9: Ø 1200 mm < Ledningsnet ≤ Ø 1600 mm | B9: meter | C9: 75 | D9: 364 | E9: 364 | F9: 364 | G9: 0 | H9: 0
A10: Ledningsnet > Ø 1600 mm (rørbassiner og transportledninger) | B10: meter | C10: 75 | D10: 0 | E10: 0 | F10: 0 | G10: 0 | H10: 0
A11: Strømpeforing ≤ Ø 200 mm | B11: meter | C11: 50 | D11: =7847.5+1036.02 -> 8883.52 | E11: 15419 | F11: 16954.29 | G11: 0.7356858543 | H11: 0.09957130813 | I11: opdateret ledningsoplysnigner
A12: Strømpeforing Ø 200 mm < Ledningsnet ≤ Ø 500 mm | B12: meter | C12: 50 | D12: =9605.64+193.6 -> 9799.24 | E12: 13241 | F12: 15926.32 | G12: 0.351227238 | H12: 0.2028034136 | I12: opdateret ledningsoplysnigner
A13: Strømpeforing Ø 500 mm < Ledningsnet ≤ Ø 800 mm | B13: meter | C13: 50 | D13: 195.7 | E13: 423 | F13: 542.19 | G13: 1.16147164 | H13: 0.2817730496 | I13: opdateret ledningsoplysnigner
A14: Strømpeforing Ø 800 mm < Ledningsnet ≤ Ø 1000 mm | B14: meter | C14: 50 | D14: 0 | G14: 0
A15: Strømpeforing Ø 1000 mm < Ledningsnet ≤ Ø 1200 mm | B15: meter | C15: 50 | D15: 0 | G15: 0
A16: Strømpeforing Ø 1200 mm < Ledningsnet ≤ Ø 1600 mm | B16: meter | C16: 50 | D16: 0 | G16: 0
A17: Ledningsnet - By
A18: Ledningsnet ≤ Ø 200 mm | B18: meter | C18: 75 | D18: =8349+262550 -> 270899 | E18: 278165 | F18: 278734 | G18: 0.02682180444 | H18: 0.002045548505
A19: Ø 200 mm < Ledningsnet ≤ Ø 500 mm | B19: meter | C19: 75 | D19: =1927+155465 -> 157392 | E19: 160093 | F19: 160121 | G19: 0.01716097387 | H19: 0.0001748983403
A20: Ø 500 mm < Ledningsnet ≤ Ø 800 mm | B20: meter | C20: 75 | D20: =278+35885 -> 36163 | E20: 36567 | F20: 36445 | G20: 0.01117163952 | H20: -0.00333634151
A21: Ø 800 mm < Ledningsnet ≤ Ø 1000 mm | B21: meter | C21: 75 | D21: =127+3323 -> 3450 | E21: 3559 | F21: 3566 | G21: 0.0315942029 | H21: 0.001966844619
A22: Ø 1000 mm < Ledningsnet ≤ Ø 1200 mm | B22: meter | C22: 75 | D22: 516 | E22: 516 | F22: 516 | G22: 0 | H22: 0
A23: Ø 1200 mm < Ledningsnet ≤ Ø 1600 mm | B23: meter | C23: 75 | D23: 537 | E23: 537 | F23: 546 | G23: 0 | H23: 0.01675977654
A24: Ledningsnet > Ø 1600 mm (rørbassiner og transportledninger) | B24: meter | C24: 75 | D24: 0 | E24: 0 | F24: 0 | G24: 0 | H24: 0
A25: Strømpeforing ≤ Ø 200 mm | B25: meter | C25: 50 | D25: =751.27+16424.85 -> 17176.12 | E25: 18879 | F25: 23383.87 | G25: 0.09914229756 | H25: 0.2386180412 | I25: opdateret ledningsoplysnigner
A26: Strømpeforing Ø 200 mm < Ledningsnet ≤ Ø 500 mm | B26: meter | C26: 50 | D26: =578.86+16164.61 -> 16743.47 | E26: 17970 | F26: 21167.69 | G26: 0.07325422986 | H26: 0.1779460211
A27: Strømpeforing Ø 500 mm < Ledningsnet ≤ Ø 800 mm | B27: meter | C27: 50 | D27: =159.29+1703.48 -> 1862.77 | E27: 1868 | F27: 2210.94 | G27: 0.002807646677 | H27: 0.1835867238
A28: Strømpeforing Ø 800 mm < Ledningsnet ≤ Ø 1000 mm | B28: meter | C28: 50 | D28: 68.83 | E28: 69 | F28: 68.83 | G28: 0.002469853262 | H28: -0.002463768116
A29: Strømpeforing Ø 1000 mm < Ledningsnet ≤ Ø 1200 mm | B29: meter | C29: 50 | D29: 0 | G29: 0
A30: Strømpeforing Ø 1200 mm < Ledningsnet ≤ Ø 1600 mm | B30: meter | C30: 50 | D30: 0 | G30: 0
A31: Ledningsnet - City
A32: Ledningsnet ≤ Ø 200 mm | B32: meter | C32: 75 | D32: 0 | G32: 0
A33: Ø 200 mm < Ledningsnet ≤ Ø 500 mm | B33: meter | C33: 75 | D33: 0 | G33: 0
A34: Ø 500 mm < Ledningsnet ≤ Ø 800 mm | B34: meter | C34: 75 | D34: 0 | G34: 0
A35: Ø 800 mm < Ledningsnet ≤ Ø 1000 mm | B35: meter | C35: 75 | D35: 0 | G35: 0
A36: Ø 1000 mm < Ledningsnet ≤ Ø 1200 mm | B36: meter | C36: 75 | D36: 0 | G36: 0
A37: Ø 1200 mm < Ledningsnet ≤ Ø 1600 mm | B37: meter | C37: 75 | D37: 0 | G37: 0
A38: Ledningsnet > Ø 1600 mm (rørbassiner og transportledninger) | B38: meter | C38: 75 | D38: 0 | G38: 0
A39: Strømpeforing ≤ Ø 200 mm | B39: meter | C39: 50 | D39: 0 | G39: 0
A40: Strømpeforing Ø 200 mm < Ledningsnet ≤ Ø 500 mm | B40: meter | C40: 50 | D40: 0 | G40: 0
A41: Strømpeforing Ø 500 mm < Ledningsnet ≤ Ø 800 mm | B41: meter | C41: 50 | D41: 0 | G41: 0
A42: Strømpeforing Ø 800 mm < Ledningsnet ≤ Ø 1000 mm | B42: meter | C42: 50 | D42: 0 | G42: 0
A43: Strømpeforing Ø 1000 mm < Ledningsnet ≤ Ø 1200 mm | B43: meter | C43: 50 | D43: 0 | G43: 0
A44: Strømpeforing Ø 1200 mm < Ledningsnet ≤ Ø 1600 mm | B44: meter | C44: 50 | D44: 0 | G44: 0
A45: Ledningsnet - Indre city
A46: Ledningsnet ≤ Ø 200 mm | B46: meter | C46: 75 | D46: 0 | G46: 0
A47: Ø 200 mm < Ledningsnet ≤ Ø 500 mm | B47: meter | C47: 75 | D47: 0 | G47: 0
A48: Ø 500 mm < Ledningsnet ≤ Ø 800 mm | B48: meter | C48: 75 | D48: 0 | G48: 0
A49: Ø 800 mm < Ledningsnet ≤ Ø 1000 mm | B49: meter | C49: 75 | D49: 0 | G49: 0
A50: Ø 1000 mm < Ledningsnet ≤ Ø 1200 mm | B50: meter | C50: 75 | D50: 0 | G50: 0
A51: Ø 1200 mm < Ledningsnet ≤ Ø 1600 mm | B51: meter | C51: 75 | D51: 0 | G51: 0
A52: Ledningsnet > Ø 1600 mm (rørbassiner og transportledninger) | B52: meter | C52: 75 | D52: 0 | G52: 0
A53: Strømpeforing ≤ Ø 200 mm | B53: meter | C53: 50 | D53: 0 | G53: 0
A54: Strømpeforing Ø 200 mm < Ledningsnet ≤ Ø 500 mm | B54: meter | C54: 50 | D54: 0 | G54: 0
A55: Strømpeforing Ø 500 mm < Ledningsnet ≤ Ø 800 mm | B55: meter | C55: 50 | D55: 0 | G55: 0
A56: Strømpeforing Ø 800 mm < Ledningsnet ≤ Ø 1000 mm | B56: meter | C56: 50 | D56: 0 | G56: 0
A57: Strømpeforing Ø 1000 mm < Ledningsnet ≤ Ø 1200 mm | B57: meter | C57: 50 | D57: 0 | G57: 0
A58: Strømpeforing Ø 1200 mm < Ledningsnet ≤ Ø 1600 mm | B58: meter | C58: 50 | D58: 0 | G58: 0
A59: Brønde og stik, ledningsnet - Land
A60: Brønde | B60: stk. | C60: 75 | D60: =6572+432 -> 7004 | E60: 6969 | F60: 6988 | G60: -0.004997144489 | H60: 0.002726359592
A61: Stik | B61: stk. | C61: 75 | D61: 12389 | E61: 12472 | F61: 12562 | G61: 0.006699491484 | H61: 0.007216164208
A62: Brønde og stik, ledningsnet - By
A63: Brønde | B63: stk. | C63: 75 | D63: =234+10010 -> 10244 | E63: 10455 | F63: 10371 | G63: 0.02059742288 | H63: -0.008034433286
A64: Stik | B64: stk. | C64: 75 | D64: 23009 | E64: 23162 | F64: 23330 | G64: 0.006649571907 | H64: 0.007253259649
A65: Brønde og stik, ledningsnet - City
A66: Brønde | B66: stk. | C66: 75 | D66: 0 | G66: 0
A67: Stik | B67: stk. | C67: 75 | D67: 0 | G67: =IF(D67="",IF(E67>0,"Ny data",IF(E67="","",0)),IF(D67=0,IF(E67=0,0,"Ny data"),(E67-D67)/D67)) -> 0 | H67: =IF(E67="",IF(F67>0,"Ny data",IF(F67="","",0)),IF(E67=0,IF(F67=0,0,"Ny data"),(F67-E67)/E67)) -> 
A68: Brønde og stik, ledningsnet - Indre city
A69: Brønde | B69: stk. | C69: 75 | D69: 0 | G69: 0
A70: Stik | B70: stk. | C70: 75 | D70: 0 | G70: 0
A71: Små pumpestationer (<100 l/s) inkl. SRO-anlæg - Land
A72: Tryksatte minipumpestationer (husstandssystemer) | B72: stk. | C72: 30 | D72: 0 | G72: 0
A73: Pumpestationer i brønde (< 6,25 m2), Konstruktioner | B73: stk. | C73: 50 | D73: 745 | E73: 750 | F73: 760 | G73: 0.006711409396 | H73: 0.01333333333
A74: Pumpestationer i brønde (< 6,25 m2), Mek/EL | B74: stk. | C74: 20 | D74: 745 | E74: 875 | F74: 980 | G74: 0.1744966443 | H74: 0.12 | I74: Der er regnet med at der i en del af ps. er 2 pumper installeret.
A75: Pumpestationer i brønde (< 6,25 m2), SRO | B75: stk. | C75: 10 | D75: 745 | E75: 750 | F75: 760 | G75: 0.006711409396 | H75: 0.01333333333
A76: Pumpestationer m. overbygning (< 20 m2), Konstruktioner | B76: stk. | C76: 50 | D76: 1 | E76: 1 | F76: 1 | G76: 0 | H76: 0
A77: Pumpestationer m. overbygning (< 20 m2), Mek/EL | B77: stk. | C77: 20 | D77: 1 | E77: 1 | F77: 1 | G77: 0 | H77: 0
A78: Pumpestationer m. overbygning (< 20 m2), SRO | B78: stk. | C78: 10 | D78: 1 | E78: 1 | F78: 1 | G78: 0 | H78: 0
A79: Pumpestationer i underjordiske bygværker (<50 m2), Konstruktioner | B79: stk. | C79: 50 | D79: 1 | E79: 1 | F79: 1 | G79: 0 | H79: 0
A80: Pumpestationer i underjordiske bygværker (<50 m2), Mek/El | B80: stk. | C80: 20 | D80: 1 | E80: 1 | F80: 1 | G80: 0 | H80: 0
A81: Pumpestationer i underjordiske bygværker (<50 m2), SRO | B81: stk. | C81: 10 | D81: 1 | E81: 1 | F81: 1 | G81: 0 | H81: 0
A82: Små pumpestationer (<100 l/s) inkl. SRO-anlæg - By
A83: Tryksatte minipumpestationer (husstandssystemer) | B83: stk. | C83: 30 | D83: 0 | G83: 0
A84: Pumpestationer i brønde (< 6,25 m2), Konstruktioner | B84: stk. | C84: 50 | D84: 105 | E84: 107 | F84: 110 | G84: 0.01904761905 | H84: 0.02803738318
A85: Pumpestationer i brønde (< 6,25 m2), Mek/EL | B85: stk. | C85: 20 | D85: 105 | E85: 137 | F85: 141 | G85: 0.3047619048 | H85: 0.02919708029 | I85: Der er regnet med at der i en del af ps. er 2 pumper installeret.
A86: Pumpestationer i brønde (< 6,25 m2), SRO | B86: stk. | C86: 10 | D86: 105 | E86: 107 | F86: 110 | G86: 0.01904761905 | H86: 0.02803738318
A87: Pumpestationer m. overbygning (< 20 m2), Konstruktioner | B87: stk. | C87: 50 | D87: 0 | G87: 0
A88: Pumpestationer m. overbygning (< 20 m2), Mek/EL | B88: stk. | C88: 20 | D88: 0 | G88: 0
A89: Pumpestationer m. overbygning (< 20 m2), SRO | B89: stk. | C89: 10 | D89: 0 | G89: 0
A90: Pumpestationer i underjordiske bygværker (<50 m2), Konstruktioner | B90: stk. | C90: 50 | D90: 0 | G90: 0
A91: Pumpestationer i underjordiske bygværker (<50 m2), Mek/El | B91: stk. | C91: 20 | D91: 0 | G91: 0
A92: Pumpestationer i underjordiske bygværker (<50 m2), SRO | B92: stk. | C92: 10 | D92: 0 | G92: 0
A93: Små pumpestationer (<100 l/s) inkl. SRO-anlæg - City
A94: Tryksatte minipumpestationer (husstandssystemer) | B94: stk. | C94: 30 | D94: 0 | G94: 0
A95: Pumpestationer i brønde (< 6,25 m2), Konstruktioner | B95: stk. | C95: 50 | D95: 0 | G95: 0
A96: Pumpestationer i brønde (< 6,25 m2), Mek/EL | B96: stk. | C96: 20 | D96: 0 | G96: 0
A97: Pumpestationer i brønde (< 6,25 m2), SRO | B97: stk. | C97: 10 | D97: 0 | G97: 0
A98: Pumpestationer m. overbygning (< 20 m2), Konstruktioner | B98: stk. | C98: 50 | D98: 0 | G98: 0
A99: Pumpestationer m. overbygning (< 20 m2), Mek/EL | B99: stk. | C99: 20 | D99: 0 | G99: 0
A100: Pumpestationer m. overbygning (< 20 m2), SRO | B100: stk. | C100: 10 | D100: 0 | G100: 0
A101: Pumpestationer i underjordiske bygværker (<50 m2), Konstruktioner | B101: stk. | C101: 50 | D101: 0 | G101: 0
A102: Pumpestationer i underjordiske bygværker (<50 m2), Mek/El | B102: stk. | C102: 20 | D102: 0 | G102: 0
A103: Pumpestationer i underjordiske bygværker (<50 m2), SRO | B103: stk. | C103: 10 | D103: 0 | G103: 0
A104: Små pumpestationer (<100 l/s) inkl. SRO-anlæg - Indre city
A105: Tryksatte minipumpestationer (husstandssystemer) | B105: stk. | C105: 30 | D105: 0 | G105: 0
A106: Pumpestationer i brønde (< 6,25 m2), Konstruktioner | B106: stk. | C106: 50 | D106: 0 | G106: 0
A107: Pumpestationer i brønde (< 6,25 m2), Mek/EL | B107: stk. | C107: 20 | D107: 0 | G107: 0
A108: Pumpestationer i brønde (< 6,25 m2), SRO | B108: stk. | C108: 10 | D108: 0 | G108: 0
A109: Pumpestationer m. overbygning (< 20 m2), Konstruktioner | B109: stk. | C109: 50 | D109: 0 | G109: 0
A110: Pumpestationer m. overbygning (< 20 m2), Mek/EL | B110: stk. | C110: 20 | D110: 0 | G110: 0
A111: Pumpestationer m. overbygning (< 20 m2), SRO | B111: stk. | C111: 10 | D111: 0 | G111: 0
A112: Pumpestationer i underjordiske bygværker (<50 m2), Konstruktioner | B112: stk. | C112: 50 | D112: 0 | G112: 0
A113: Pumpestationer i underjordiske bygværker (<50 m2), Mek/El | B113: stk. | C113: 20 | D113: 0 | G113: 0
A114: Pumpestationer i underjordiske bygværker (<50 m2), SRO | B114: stk. | C114: 10 | D114: 0 | G114: 0
A115: Store pumpestationer: inkl. SRO-anlæg - Land
A116: Kælder | B116: m2 | C116: 75 | D116: 140 | E116: 140 | F116: 140 | G116: 0 | H116: 0
A117: Pumpeinstallation Miljøklasse A (100-300 l/s) - Mek/EL | B117: stk. | C117: 20 | D117: 14 | E117: 14 | F117: 14 | G117: 0 | H117: 0
A118: Pumpeinstallation Miljøklasse A (100-300 l/s) - SRO | B118: stk. | C118: 10 | D118: 14 | E118: 14 | F118: 14 | G118: 0 | H118: 0
A119: Pumpeinstallation Miljøklasse A (300-600 l/s) - Mek/EL | B119: stk. | C119: 20 | D119: 0 | E119: 0 | F119: 0 | G119: 0 | H119: 0
A120: Pumpeinstallation Miljøklasse A (300-600 l/s) - SRO | B120: stk. | C120: 10 | D120: 0 | E120: 0 | F120: 0 | G120: 0 | H120: 0
A121: Pumpeinstallation Miljøklasse A (600-1.000 l/s) - Mek/EL | B121: stk. | C121: 20 | D121: 1 | E121: 1 | F121: 1 | G121: 0 | H121: 0
A122: Pumpeinstallation Miljøklasse A (600-1.000 l/s) - SRO | B122: stk. | C122: 10 | D122: 1 | E122: 1 | F122: 1 | G122: 0 | H122: 0
A123: Pumpeinstallation Miljøklasse A (1.000-1.500 l/s) - Mek/EL | B123: stk. | C123: 20 | D123: 0 | G123: 0
A124: Pumpeinstallation Miljøklasse A (1.000-1.500 l/s) - SRO | B124: stk. | C124: 10 | D124: 0 | G124: 0
A125: Pumpeinstallation Miljøklasse B (100-300 l/s) - Mek/EL | B125: stk. | C125: 20 | D125: 0 | G125: 0
A126: Pumpeinstallation Miljøklasse B (100-300 l/s) - SRO | B126: stk. | C126: 10 | D126: 0 | G126: 0
A127: Pumpeinstallation Miljøklasse B (300-600 l/s) - Mek/EL | B127: stk. | C127: 20 | D127: 0 | G127: 0
A128: Pumpeinstallation Miljøklasse B (300-600 l/s) - SRO | B128: stk. | C128: 10 | D128: 0 | G128: 0
A129: Pumpeinstallation Miljøklasse B (600-1.000 l/s) - Mek/EL | B129: stk. | C129: 20 | D129: 0 | G129: 0
A130: Pumpeinstallation Miljøklasse B (600-1.000 l/s) - SRO | B130: stk. | C130: 10 | D130: 0 | G130: 0
A131: Pumpeinstallation Miljøklasse B (1.000-1.500 l/s) - Mek/EL | B131: stk. | C131: 20 | D131: 0 | G131: =IF(D131="",IF(E131>0,"Ny data",IF(E131="","",0)),IF(D131=0,IF(E131=0,0,"Ny data"),(E131-D131)/D131)) -> 0 | H131: =IF(E131="",IF(F131>0,"Ny data",IF(F131="","",0)),IF(E131=0,IF(F131=0,0,"Ny data"),(F131-E131)/E131)) -> 
A132: Pumpeinstallation Miljøklasse B (1.000-1.500 l/s) - SRO | B132: stk. | C132: 10 | D132: 0 | G132: 0
A133: Overbygning | B133: m2 | C133: 75 | D133: 200 | E133: 200 | F133: 200 | G133: 0 | H133: 0
A134: Store pumpestationer: inkl. SRO-anlæg - By
A135: Kælder | B135: m2 | C135: 75 | D135: 300 | E135: 300 | F135: 300 | G135: 0 | H135: 0
A136: Pumpeinstallation Miljøklasse A (100-300 l/s) - Mek/EL | B136: stk. | C136: 20 | D136: 4 | E136: 4 | F136: 4 | G136: 0 | H136: 0
A137: Pumpeinstallation Miljøklasse A (100-300 l/s) - SRO | B137: stk. | C137: 10 | D137: 4 | E137: 4 | F137: 4 | G137: 0 | H137: 0
A138: Pumpeinstallation Miljøklasse A (300-600 l/s) - Mek/EL | B138: stk. | C138: 20 | D138: 1 | E138: 1 | F138: 1 | G138: 0 | H138: 0
A139: Pumpeinstallation Miljøklasse A (300-600 l/s) - SRO | B139: stk. | C139: 10 | D139: 1 | E139: 1 | F139: 1 | G139: 0 | H139: 0
A140: Pumpeinstallation Miljøklasse A (600-1.000 l/s) - Mek/EL | B140: stk. | C140: 20 | D140: 0 | G140: 0
A141: Pumpeinstallation Miljøklasse A (600-1.000 l/s) - SRO | B141: stk. | C141: 10 | D141: 0 | G141: 0
A142: Pumpeinstallation Miljøklasse A (1.000-1.500 l/s) - Mek/EL | B142: stk. | C142: 20 | D142: 0 | G142: 0
A143: Pumpeinstallation Miljøklasse A (1.000-1.500 l/s) - SRO | B143: stk. | C143: 10 | D143: 0 | G143: 0
A144: Pumpeinstallation Miljøklasse B (100-300 l/s) - Mek/EL | B144: stk. | C144: 20 | D144: 0 | G144: 0
A145: Pumpeinstallation Miljøklasse B (100-300 l/s) - SRO | B145: stk. | C145: 10 | D145: 0 | G145: 0
A146: Pumpeinstallation Miljøklasse B (300-600 l/s) - Mek/EL | B146: stk. | C146: 20 | D146: 0 | G146: 0
A147: Pumpeinstallation Miljøklasse B (300-600 l/s) - SRO | B147: stk. | C147: 10 | D147: 0 | G147: 0
A148: Pumpeinstallation Miljøklasse B (600-1.000 l/s) - Mek/EL | B148: stk. | C148: 20 | D148: 0 | G148: 0
A149: Pumpeinstallation Miljøklasse B (600-1.000 l/s) - SRO | B149: stk. | C149: 10 | D149: 0 | G149: 0
A150: Pumpeinstallation Miljøklasse B (1.000-1.500 l/s) - Mek/EL | B150: stk. | C150: 20 | D150: 0 | G150: 0
A151: Pumpeinstallation Miljøklasse B (1.000-1.500 l/s) - SRO | B151: stk. | C151: 10 | D151: 0 | G151: 0
A152: Overbygning | B152: m2 | C152: 75 | D152: 300 | E152: 300 | F152: 300 | G152: 0 | H152: 0
A153: Store pumpestationer: inkl. SRO-anlæg - City
A154: Kælder | B154: m2 | C154: 75 | D154: 0 | G154: 0
A155: Pumpeinstallation Miljøklasse A (100-300 l/s) - Mek/EL | B155: stk. | C155: 20 | D155: 0 | G155: 0
A156: Pumpeinstallation Miljøklasse A (100-300 l/s) - SRO | B156: stk. | C156: 10 | D156: 0 | G156: 0
A157: Pumpeinstallation Miljøklasse A (300-600 l/s) - Mek/EL | B157: stk. | C157: 20 | D157: 0 | G157: 0
A158: Pumpeinstallation Miljøklasse A (300-600 l/s) - SRO | B158: stk. | C158: 10 | D158: 0 | G158: 0
A159: Pumpeinstallation Miljøklasse A (600-1.000 l/s) - Mek/EL | B159: stk. | C159: 20 | D159: 0 | G159: 0
A160: Pumpeinstallation Miljøklasse A (600-1.000 l/s) - SRO | B160: stk. | C160: 10 | D160: 0 | G160: 0
A161: Pumpeinstallation Miljøklasse A (1.000-1.500 l/s) - Mek/EL | B161: stk. | C161: 20 | D161: 0 | G161: 0
A162: Pumpeinstallation Miljøklasse A (1.000-1.500 l/s) - SRO | B162: stk. | C162: 10 | D162: 0 | G162: 0
A163: Pumpeinstallation Miljøklasse B (100-300 l/s) - Mek/EL | B163: stk. | C163: 20 | D163: 0 | G163: 0
A164: Pumpeinstallation Miljøklasse B (100-300 l/s) - SRO | B164: stk. | C164: 10 | D164: 0 | G164: 0
A165: Pumpeinstallation Miljøklasse B (300-600 l/s) - Mek/EL | B165: stk. | C165: 20 | D165: 0 | G165: 0
A166: Pumpeinstallation Miljøklasse B (300-600 l/s) - SRO | B166: stk. | C166: 10 | D166: 0 | G166: 0
A167: Pumpeinstallation Miljøklasse B (600-1.000 l/s) - Mek/EL | B167: stk. | C167: 20 | D167: 0 | G167: 0
A168: Pumpeinstallation Miljøklasse B (600-1.000 l/s) - SRO | B168: stk. | C168: 10 | D168: 0 | G168: 0
A169: Pumpeinstallation Miljøklasse B (1.000-1.500 l/s) - Mek/EL | B169: stk. | C169: 20 | D169: 0 | G169: 0
A170: Pumpeinstallation Miljøklasse B (1.000-1.500 l/s) - SRO | B170: stk. | C170: 10 | D170: 0 | G170: 0
A171: Overbygning | B171: m2 | C171: 75 | D171: 0 | G171: 0
A172: Store pumpestationer: inkl. SRO-anlæg - Indre city
A173: Kælder | B173: m2 | C173: 75 | D173: 0 | G173: 0
A174: Pumpeinstallation Miljøklasse A (100-300 l/s) - Mek/EL | B174: stk. | C174: 20 | D174: 0 | G174: 0
A175: Pumpeinstallation Miljøklasse A (100-300 l/s) - SRO | B175: stk. | C175: 10 | D175: 0 | G175: 0
A176: Pumpeinstallation Miljøklasse A (300-600 l/s) - Mek/EL | B176: stk. | C176: 20 | D176: 0 | G176: 0
A177: Pumpeinstallation Miljøklasse A (300-600 l/s) - SRO | B177: stk. | C177: 10 | D177: 0 | G177: 0
A178: Pumpeinstallation Miljøklasse A (600-1.000 l/s) - Mek/EL | B178: stk. | C178: 20 | D178: 0 | G178: 0
A179: Pumpeinstallation Miljøklasse A (600-1.000 l/s) - SRO | B179: stk. | C179: 10 | D179: 0 | G179: 0
A180: Pumpeinstallation Miljøklasse A (1.000-1.500 l/s) - Mek/EL | B180: stk. | C180: 20 | D180: 0 | G180: 0
A181: Pumpeinstallation Miljøklasse A (1.000-1.500 l/s) - SRO | B181: stk. | C181: 10 | D181: 0 | G181: 0
A182: Pumpeinstallation Miljøklasse B (100-300 l/s) - Mek/EL | B182: stk. | C182: 20 | D182: 0 | G182: 0
A183: Pumpeinstallation Miljøklasse B (100-300 l/s) - SRO | B183: stk. | C183: 10 | D183: 0 | G183: 0
A184: Pumpeinstallation Miljøklasse B (300-600 l/s) - Mek/EL | B184: stk. | C184: 20 | D184: 0 | G184: 0
A185: Pumpeinstallation Miljøklasse B (300-600 l/s) - SRO | B185: stk. | C185: 10 | D185: 0 | G185: 0
A186: Pumpeinstallation Miljøklasse B (600-1.000 l/s) - Mek/EL | B186: stk. | C186: 20 | D186: 0 | G186: 0
A187: Pumpeinstallation Miljøklasse B (600-1.000 l/s) - SRO | B187: stk. | C187: 10 | D187: 0 | G187: 0
A188: Pumpeinstallation Miljøklasse B (1.000-1.500 l/s) - Mek/EL | B188: stk. | C188: 20 | D188: 0 | G188: 0
A189: Pumpeinstallation Miljøklasse B (1.000-1.500 l/s) - SRO | B189: stk. | C189: 10 | D189: 0 | G189: 0
A190: Overbygning | B190: m2 | C190: 75 | D190: 0 | G190: 0
A191: Overløbsbygværker - Land
A192: Kælder (< 7 m2) | B192: stk. | C192: 75 | D192: 123 | E192: 126 | F192: 126 | G192: 0.0243902439 | H192: 0
A193: Kælder (7 - 20 m2) | B193: m2 | C193: 75 | D193: 0 | G193: 0
A194: Kælder (20 - 30 m2) | B194: m2 | C194: 75 | D194: 0 | G194: 0
A195: Installationer (mindre end 7 m2) | B195: stk. | C195: 20 | D195: 123 | E195: 126 | F195: 126 | G195: =IF(D195="",IF(E195>0,"Ny data",IF(E195="","",0)),IF(D195=0,IF(E195=0,0,"Ny data"),(E195-D195)/D195)) -> 0.0243902439 | H195: =IF(E195="",IF(F195>0,"Ny data",IF(F195="","",0)),IF(E195=0,IF(F195=0,0,"Ny data"),(F195-E195)/E195)) -> 0
A196: Installationer, Miljøklasse A. (7-20 m2) - Mek/EL | B196: stk. | C196: 20 | D196: 0 | G196: 0
A197: Installationer, Miljøklasse A. (7-20 m2) - SRO | B197: stk. | C197: 10 | D197: 0 | G197: 0
A198: Installationer, Miljøklasse A. (20-30 m2) - Mek/EL | B198: stk. | C198: 20 | D198: 0 | G198: 0
A199: Installationer, Miljøklasse A. (20-30 m2) - SRO | B199: stk. | C199: 10 | D199: 0 | G199: 0
A200: Installationer, Miljøklasse B. (7-20 m2) - Mek/EL | B200: stk. | C200: 20 | D200: 0 | G200: 0
A201: Installationer, Miljøklasse B. (7-20 m2) - SRO | B201: stk. | C201: 10 | D201: 0 | G201: 0
... 117 more rows

Sheet Fællesfunktionsanlæg
A1: Fællesfunktionsanlæg | B1: Enhed | C1: Standard-levetid | D1: Samlet mængde per 31/12-2022 | E1: Samlet mængde per 31/12-2023 | F1: Samlet mængde per 31/12-2024 | G1: Afvigelse 2022-2023 | H1: Afvigelse 2023-2024 | I1: Bemærkninger
A3: Andre | G3: =IF(D3="",IF(E3>0,"Ny data",IF(E3="","",0)),IF(D3=0,IF(E3=0,0,"Ny data"),(E3-D3)/D3)) ->  | H3: =IF(E3="",IF(F3>0,"Ny data",IF(F3="","",0)),IF(E3=0,IF(F3=0,0,"Ny data"),(F3-E3)/E3)) -> 
A4: Administrationbygninger | B4: m2 | C4: 75 | D4: 1500 | E4: 1500 | F4: 1500 | G4: 0 | H4: 0
A5: Arbejdsplads og kontor | B5: stk. | C5: 5 | D5: 24 | E5: 25 | F5: 25 | G5: 0.04166666667 | H5: 0
A6: Køretøjer, personbil | B6: stk. | C6: 5 | D6: 2 | E6: 2 | F6: 2 | G6: 0 | H6: 0
A7: Køretøjer, små lastvogne (< 3.500 kg.) | B7: stk. | C7: 5 | D7: 7 | E7: 7 | F7: 7 | G7: 0 | H7: 0
A8: Køretøjer, store lastvogne (> 3.500 kg.) | B8: stk. | C8: 5 | D8: 2 | E8: 2 | F8: 2 | G8: 0 | H8: 0
A9: Køretøjer, entreprenørmaskiner | B9: stk. | C9: 5 | D9: 2 | E9: 2 | F9: 2 | G9: 0 | H9: 0
A10: Slamsugere | B10: stk. | C10: 5 | D10: 0 | G10: 0
A11: Værksteder, garager | B11: m2 | C11: 75 | D11: 2400 | E11: 2400 | F11: 2400 | G11: 0 | H11: 0
A12: Solcelleanlæg eksl. Inverter | B12: kWp | C12: 25 | D12: 0 | E12: 75 | F12: 75 | G12: Ny data | H12: 0 | I12: På administartionsbygning
A13: Inverter til solcelleanlæg | B13: kWp | C13: 10 | D13: 0 | E13: 75 | F13: 75 | G13: Ny data | H13: 0 | I13: På administartionsbygning
